[Event "CCT Chessable Masters Play-In 2025"]
[Site "Online"]
[Date "2025.02.17"]
[Round "1.43"]
[White "Oparin, Grigoriy"]
[Black "Sanal, Vahap"]
[Result "1-0"]
[ECO "C50"]
[WhiteElo "2660"]
[BlackElo "2557"]
[PlyCount "125"]
[EventDate "2025.02.13"]
[EventType "swiss"]
[EventCountry "NET"]
[TimeControl "600"]
[WhiteClock "0:01:37"]
[BlackClock "0:00:19"]

1. e4 {[%emt 0:00:02]} e5 {[%emt 0:00:06]} 2. Nf3 {[%emt 0:00:01]} Nc6 {[%emt 0:00:01]} 3. Bc4 {[%emt 0:00:01]} Bc5 {[%emt 0:00:01]} 4. Nc3 {[%emt 0:00:02]} Nf6 {[%emt 0:00:05]} 5. d3 {[%emt 0:00:00]} h6 {[%emt 0:00:04]} 6. O-O {[%emt 0:00:06]} a6 {[%emt 0:00:26]} 7. a4 {[%emt 0:00:02]} d6 {[%emt 0:00:07]} 8. Be3 {[%emt 0:00:02]} Bxe3 {[%emt 0:00:06]} 9. fxe3 {[%emt 0:00:00]} Be6 {[%emt 0:00:02]} 10. Nd5 {[%emt 0:00:01]} Bxd5 {[%emt 0:00:15]} 11. exd5 {[%emt 0:00:00]} Ne7 {[%emt 0:00:01]} 12. Nh4 {[%emt 0:00:01]} c6 {[%emt 0:00:25]} 13. dxc6 {[%emt 0:00:49]} bxc6 {[%emt 0:00:05]} 14. Qe1 {[%emt 0:00:01]} d5 {[%emt 0:00:17]} 15. Bb3 {[%emt 0:00:01]} Qd6 {[%emt 0:00:19]} 16. Qg3 {[%emt 0:00:05]} O-O {[%emt 0:00:16]} 17. Rf2 {[%emt 0:00:28]} Nd7 {[%emt 0:00:03]} 18. d4 {[%emt 0:00:09]} c5 {[%emt 0:00:26]} 19. c3 {[%emt 0:00:07]} Rab8 {[%emt 0:00:09]} 20. Bc2 {[%emt 0:00:01]} Kh8 {[%emt 0:00:30]} 21. Raf1 {[%emt 0:00:04]} Kg8 {[%emt 0:00:27]} 22. Bf5 {[%emt 0:00:14]} Rb7 {[%emt 0:00:46]} 23. Bxd7 {[%emt 0:00:10]} Qxd7 {[%emt 0:00:01]} 24. Qxe5 {[%emt 0:00:11]} Qxa4 {[%emt 0:00:06]} 25. Rf3 {[%emt 0:00:51]} cxd4 {[%emt 0:00:16]} 26. Rg3 {[%emt 0:00:18]} f6 {[%emt 0:00:03]} 27. Qe6+ {[%emt 0:00:01]} Kh8 {[%emt 0:00:06]} 28. exd4 {[%emt 0:00:04]} Qc2 {[%emt 0:00:10]} 29. Re3 {[%emt 0:00:31]} Ng6 {[%emt 0:00:10]} 30. Re2 {[%emt 0:00:13]} Qd3 {[%emt 0:00:14]} 31. Qh3 {[%emt 0:00:38]} Qxe2 {[%emt 0:00:42]} 32. Nxg6+ {[%emt 0:00:01]} Kg8 {[%emt 0:00:01]} 33. Nxf8 {[%emt 0:00:00]} Rxb2 {[%emt 0:00:26]} 34. Ng6 {[%emt 0:00:03]} a5 {[%emt 0:00:07]} 35. Nf4 {[%emt 0:00:08]} Qe4 {[%emt 0:00:06]} 36. Qe6+ {[%emt 0:00:35]} Kh7 {[%emt 0:00:22]} 37. Qxe4+ {[%emt 0:00:16]} dxe4 {[%emt 0:00:01]} 38. Ra1 {[%emt 0:00:02]} e3 {[%emt 0:00:01]} 39. g3 {[%emt 0:00:04]} Rc2 {[%emt 0:00:04]} 40. Rxa5 {[%emt 0:00:13]} g5 {[%emt 0:00:02]} 41. Ra7+ {[%emt 0:00:01]} Kg8 {[%emt 0:00:03]} 42. Nd3 {[%emt 0:00:15]} Rxc3 {[%emt 0:00:07]} 43. Ne1 {[%emt 0:00:01]} Rc1 {[%emt 0:00:04]} 44. Kf1 {[%emt 0:00:02]} Rd1 {[%emt 0:00:00]} 45. Re7 {[%emt 0:00:05]} Rxd4 {[%emt 0:00:02]} 46. Rxe3 {[%emt 0:00:01]} Kf7 {[%emt 0:00:02]} 47. Re2 {[%emt 0:00:02]} Ra4 {[%emt 0:00:00]} 48. Kg2 {[%emt 0:00:00]} h5 {[%emt 0:00:01]} 49. Nf3 {[%emt 0:00:01]} Kg6 {[%emt 0:00:02]} 50. Rd2 {[%emt 0:00:02]} Rb4 {[%emt 0:00:01]} 51. h4 {[%emt 0:00:02]} Rb6 {[%emt 0:00:03]} 52. Kf2 {[%emt 0:00:06]} Ra6 {[%emt 0:00:02]} 53. Rb2 {[%emt 0:00:01]} Kh6 {[%emt 0:00:07]} 54. hxg5+ {[%emt 0:00:09]} fxg5 {[%emt 0:00:01]} 55. Rb5 {[%emt 0:00:00]} Ra2+ {[%emt 0:00:13]} 56. Ke3 {[%emt 0:00:01]} Ra3+ {[%emt 0:00:23]} 57. Ke4 {[%emt 0:00:01]} h4 {[%emt 0:00:00]} 58. g4 {[%emt 0:00:18]} h3 {[%emt 0:00:01]} 59. Rxg5 {[%emt 0:00:35]} Ra4+ {[%emt 0:00:01]} 60. Ke3 {[%emt 0:00:01]} Ra3+ {[%emt 0:00:01]} 61. Ke2 {[%emt 0:00:00]} Ra2+ {[%emt 0:00:06]} 62. Kf1 {[%emt 0:00:02]} Ra1+ {[%emt 0:00:26]} 63. Kf2 {[%emt 0:00:01]} 1-0

[Event "CCT Chessable Masters Play-In 2025"]
[Site "Online"]
[Date "2025.02.17"]
[Round "1.44"]
[White "Xiao, Tong"]
[Black "Theodorou, Nikolas"]
[Result "0-1"]
[ECO "C18"]
[WhiteElo "2491"]
[BlackElo "2611"]
[PlyCount "194"]
[EventDate "2025.02.13"]
[EventType "swiss"]
[EventCountry "NET"]
[TimeControl "600"]
[WhiteClock "0:00:02"]
[BlackClock "0:00:34"]

1. e4 {[%emt 0:00:03]} e6 {[%emt 0:00:01]} 2. d4 {[%emt 0:00:02]} d5 {[%emt 0:00:01]} 3. Nc3 {[%emt 0:00:05]} Bb4 {[%emt 0:00:01]} 4. e5 {[%emt 0:00:07]} c5 {[%emt 0:00:01]} 5. a3 {[%emt 0:00:01]} Bxc3+ {[%emt 0:00:01]} 6. bxc3 {[%emt 0:00:00]} Nc6 {[%emt 0:00:00]} 7. Qg4 {[%emt 0:00:08]} g6 {[%emt 0:00:01]} 8. Nf3 {[%emt 0:00:05]} Qa5 {[%emt 0:00:13]} 9. Bd2 {[%emt 0:00:01]} c4 {[%emt 0:00:01]} 10. Be2 {[%emt 0:00:08]} Qa4 {[%emt 0:00:03]} 11. Bd1 {[%emt 0:00:01]} Bd7 {[%emt 0:00:02]} 12. h4 {[%emt 0:00:02]} h6 {[%emt 0:00:01]} 13. Qf4 {[%emt 0:00:05]} Rh7 {[%emt 0:00:01]} 14. Nh2 {[%emt 0:00:04]} O-O-O {[%emt 0:00:03]} 15. Ng4 {[%emt 0:00:01]} Re8 {[%emt 0:00:20]} 16. Rh3 {[%emt 0:00:12]} Nce7 {[%emt 0:00:19]} 17. Ne3 {[%emt 0:00:38]} Rf8 {[%emt 0:00:05]} 18. Rf3 {[%emt 0:00:07]} Qa5 {[%emt 0:00:49]} 19. Kf1 {[%emt 0:00:25]} Qd8 {[%emt 0:00:06]} 20. h5 {[%emt 0:00:23]} g5 {[%emt 0:00:04]} 21. Qh2 {[%emt 0:00:01]} f5 {[%emt 0:00:18]} 22. exf6 {[%emt 0:00:02]} Nxf6 {[%emt 0:00:04]} 23. Be1 {[%emt 0:00:46]} Nf5 {[%emt 0:00:16]} 24. Qe5 {[%emt 0:00:26]} Rhf7 {[%emt 0:00:43]} 25. Kg1 {[%emt 0:00:12]} Qc7 {[%emt 0:00:17]} 26. Rb1 {[%emt 0:00:29]} b6 {[%emt 0:00:10]} 27. Be2 {[%emt 0:00:18]} Ne7 {[%emt 0:02:05]} 28. Bd2 {[%emt 0:01:11]} Qd8 {[%emt 0:00:16]} 29. Be1 {[%emt 0:00:17]} Nc6 {[%emt 0:00:04]} 30. Qh2 {[%emt 0:00:02]} Be8 {[%emt 0:00:09]} 31. Bd1 {[%emt 0:01:00]} Qe7 {[%emt 0:00:03]} 32. Ra1 {[%emt 0:00:03]} Rg7 {[%emt 0:00:04]} 33. Bd2 {[%emt 0:00:20]} Bd7 {[%emt 0:00:13]} 34. Be1 {[%emt 0:00:06]} Rgf7 {[%emt 0:00:10]} 35. Nf1 {[%emt 0:00:16]} Qd8 {[%emt 0:00:15]} 36. Re3 {[%emt 0:00:05]} Rg7 {[%emt 0:00:07]} 37. Be2 {[%emt 0:00:02]} Ne4 {[%emt 0:00:08]} 38. f3 {[%emt 0:00:10]} Nf6 {[%emt 0:00:02]} 39. g4 {[%emt 0:00:01]} Rgf7 {[%emt 0:00:05]} 40. Bg3 {[%emt 0:00:01]} Ne8 {[%emt 0:00:01]} 41. Nd2 {[%emt 0:00:02]} Na5 {[%emt 0:00:01]} 42. a4 {[%emt 0:00:06]} Qe7 {[%emt 0:00:03]} 43. Be5 {[%emt 0:00:08]} Kb7 {[%emt 0:00:02]} 44. Qg3 {[%emt 0:00:07]} Bc6 {[%emt 0:00:03]} 45. Kh2 {[%emt 0:00:03]} Qd7 {[%emt 0:00:03]} 46. Nb1 {[%emt 0:00:08]} Bxa4 {[%emt 0:00:08]} 47. Na3 {[%emt 0:00:00]} b5 {[%emt 0:00:10]} 48. Bf1 {[%emt 0:00:03]} a6 {[%emt 0:00:01]} 49. Bg2 {[%emt 0:00:01]} Nc6 {[%emt 0:00:01]} 50. Rf1 {[%emt 0:00:02]} Rf4 {[%emt 0:00:04]} 51. Qe1 {[%emt 0:00:05]} Nxe5 {[%emt 0:00:01]} 52. Rxe5 {[%emt 0:00:00]} Nc7 {[%emt 0:00:00]} 53. Qb1 {[%emt 0:00:04]} Qd6 {[%emt 0:00:01]} 54. Qb2 {[%emt 0:00:02]} Kc6 {[%emt 0:00:02]} 55. Nb1 {[%emt 0:00:02]} Rb8 {[%emt 0:00:03]} 56. Nd2 {[%emt 0:00:01]} Kd7 {[%emt 0:00:13]} 57. Rfe1 {[%emt 0:00:01]} Rbf8 {[%emt 0:00:02]} 58. Kh3 {[%emt 0:00:02]} R4f6 {[%emt 0:00:00]} 59. Qa2 {[%emt 0:00:01]} Rb8 {[%emt 0:00:02]} 60. Qa1 {[%emt 0:00:01]} Qc6 {[%emt 0:00:02]} 61. Qa2 {[%emt 0:00:01]} Rbf8 {[%emt 0:00:01]} 62. R1e2 {[%emt 0:00:01]} Qb6 {[%emt 0:00:01]} 63. R2e3 {[%emt 0:00:01]} R8f7 {[%emt 0:00:01]} 64. Re2 {[%emt 0:00:01]} Qc6 {[%emt 0:00:01]} 65. R2e3 {[%emt 0:00:01]} Kc8 {[%emt 0:00:01]} 66. Re2 {[%emt 0:00:00]} Qd6 {[%emt 0:00:01]} 67. Re1 {[%emt 0:00:01]} Qd7 {[%emt 0:00:01]} 68. R1e3 {[%emt 0:00:01]} Na8 {[%emt 0:00:04]} 69. Re2 {[%emt 0:00:00]} Nb6 {[%emt 0:00:00]} 70. Re1 {[%emt 0:00:01]} Qd6 {[%emt 0:00:01]} 71. R1e2 {[%emt 0:00:01]} Nd7 {[%emt 0:00:00]} 72. R5e3 {[%emt 0:00:02]} Qc6 {[%emt 0:00:02]} 73. Nf1 {[%emt 0:00:01]} Re7 {[%emt 0:00:02]} 74. Ng3 {[%emt 0:00:00]} Ref7 {[%emt 0:00:00]} 75. Re1 {[%emt 0:00:01]} Qd6 {[%emt 0:00:02]} 76. R1e2 {[%emt 0:00:01]} Kc7 {[%emt 0:00:00]} 77. Re1 {[%emt 0:00:00]} Nb6 {[%emt 0:00:02]} 78. R1e2 {[%emt 0:00:01]} a5 {[%emt 0:00:01]} 79. Re1 {[%emt 0:00:01]} Kb7 {[%emt 0:00:00]} 80. Rb1 {[%emt 0:00:00]} Ka6 {[%emt 0:00:01]} 81. Rb2 {[%emt 0:00:01]} Re7 {[%emt 0:00:01]} 82. Re1 {[%emt 0:00:00]} e5 {[%emt 0:00:02]} 83. Nf5 {[%emt 0:00:01]} Rxf5 {[%emt 0:00:00]} 84. gxf5 {[%emt 0:00:01]} exd4 {[%emt 0:00:00]} 85. Rxe7 {[%emt 0:00:00]} Qxe7 {[%emt 0:00:00]} 86. cxd4 {[%emt 0:00:01]} Qf6 {[%emt 0:00:01]} 87. c3 {[%emt 0:00:02]} Qxf5+ {[%emt 0:00:01]} 88. Kh2 {[%emt 0:00:00]} Qf4+ {[%emt 0:00:00]} 89. Kh1 {[%emt 0:00:01]} Qh4+ {[%emt 0:00:01]} 90. Kg1 {[%emt 0:00:01]} Qe1+ {[%emt 0:00:00]} 91. Kh2 {[%emt 0:00:00]} Qxc3 {[%emt 0:00:00]} 92. Re2 {[%emt 0:00:00]} Qxd4 {[%emt 0:00:01]} 93. Re6 {[%emt 0:00:01]} c3 {[%emt 0:00:02]} 94. Qe2 {[%emt 0:00:01]} c2 {[%emt 0:00:02]} 95. Qe1 {[%emt 0:00:01]} Qf4+ {[%emt 0:00:01]} 96. Kh3 {[%emt 0:00:02]} c1=Q {[%emt 0:00:04]} 97. Qf2 {[%emt 0:00:04]} Qh4+ {[%emt 0:00:03]} 0-1

[Event "CCT Chessable Masters Play-In 2025"]
[Site "Online"]
[Date "2025.02.17"]
[Round "1.45"]
[White "Santos Latasa, Jaime"]
[Black "Akobian, Varuzhan"]
[Result "1-0"]
[ECO "D32"]
[WhiteElo "2631"]
[BlackElo "2564"]
[PlyCount "131"]
[EventDate "2025.02.13"]
[EventType "swiss"]
[EventCountry "NET"]
[TimeControl "600"]
[WhiteClock "0:01:15"]

1. Nf3 {[%emt 0:00:04]} Nf6 {[%emt 0:00:03]} 2. c4 {[%emt 0:00:02]} e6 {[%emt 0:00:03]} 3. Nc3 {[%emt 0:00:03]} d5 {[%emt 0:00:07]} 4. e3 {[%emt 0:00:01]} Be7 {[%emt 0:00:03]} 5. b3 {[%emt 0:00:02]} O-O {[%emt 0:00:03]} 6. Bb2 {[%emt 0:00:02]} c5 {[%emt 0:00:01]} 7. cxd5 {[%emt 0:00:02]} exd5 {[%emt 0:00:01]} 8. d4 {[%emt 0:00:01]} Nc6 {[%emt 0:00:02]} 9. Be2 {[%emt 0:00:02]} Bg4 {[%emt 0:00:09]} 10. dxc5 {[%emt 0:00:02]} Bxc5 {[%emt 0:00:02]} 11. O-O {[%emt 0:00:02]} Re8 {[%emt 0:00:03]} 12. Rc1 {[%emt 0:00:02]} Bb4 {[%emt 0:00:31]} 13. h3 {[%emt 0:00:25]} Bh5 {[%emt 0:00:05]} 14. a3 {[%emt 0:00:06]} Bf8 {[%emt 0:00:11]} 15. Nh4 {[%emt 0:00:11]} Bxe2 {[%emt 0:00:07]} 16. Nxe2 {[%emt 0:00:02]} Ne4 {[%emt 0:00:05]} 17. Nf3 {[%emt 0:00:49]} Be7 {[%emt 0:00:47]} 18. b4 {[%emt 0:00:42]} Bf6 {[%emt 0:00:05]} 19. Bxf6 {[%emt 0:00:06]} Nxf6 {[%emt 0:00:24]} 20. Qb3 {[%emt 0:00:11]} Qb6 {[%emt 0:00:25]} 21. Rfd1 {[%emt 0:00:05]} Rad8 {[%emt 0:00:03]} 22. Rd3 {[%emt 0:00:12]} h6 {[%emt 0:00:47]} 23. Rcd1 {[%emt 0:00:04]} a5 {[%emt 0:00:15]} 24. b5 {[%emt 0:00:09]} Ne7 {[%emt 0:00:27]} 25. Nf4 {[%emt 0:00:09]} Rc8 {[%emt 0:00:27]} 26. a4 {[%emt 0:00:10]} Rc5 {[%emt 0:00:09]} 27. Rc3 {[%emt 0:00:06]} Rec8 {[%emt 0:00:08]} 28. Rxc5 {[%emt 0:01:02]} Rxc5 {[%emt 0:00:08]} 29. Qa3 {[%emt 0:00:08]} Qc7 {[%emt 0:00:10]} 30. Nd4 {[%emt 0:00:24]} b6 {[%emt 0:00:17]} 31. Qb2 {[%emt 0:00:30]} Rc4 {[%emt 0:00:14]} 32. Qa1 {[%emt 0:00:15]} Qc8 {[%emt 0:00:33]} 33. f3 {[%emt 0:00:17]} Qc5 {[%emt 0:00:10]} 34. Nd3 {[%emt 0:00:07]} Qc7 {[%emt 0:00:05]} 35. Kf2 {[%emt 0:00:04]} Nd7 {[%emt 0:00:10]} 36. Nf4 {[%emt 0:00:10]} Nc5 {[%emt 0:00:03]} 37. Rd2 {[%emt 0:00:34]} Rxa4 {[%emt 0:00:05]} 38. Qd1 {[%emt 0:00:02]} Rc4 {[%emt 0:00:02]} 39. Nc6 {[%emt 0:00:04]} Rxf4 {[%emt 0:01:19]} 40. Nxe7+ {[%emt 0:00:04]} Qxe7 {[%emt 0:00:01]} 41. exf4 {[%emt 0:00:01]} Qh4+ {[%emt 0:00:03]} 42. Kg1 {[%emt 0:00:06]} Qxf4 {[%emt 0:00:04]} 43. Rxd5 {[%emt 0:00:03]} a4 {[%emt 0:00:05]} 44. Qc2 {[%emt 0:00:04]} Qe3+ {[%emt 0:00:05]} 45. Kh1 {[%emt 0:00:04]} Qe1+ {[%emt 0:00:01]} 46. Kh2 {[%emt 0:00:02]} Qe7 {[%emt 0:00:01]} 47. Qc3 {[%emt 0:00:07]} Qa7 {[%emt 0:00:12]} 48. Rd8+ {[%emt 0:00:04]} Kh7 {[%emt 0:00:01]} 49. Qc2+ {[%emt 0:00:01]} g6 {[%emt 0:00:05]} 50. Qd2 {[%emt 0:00:13]} Qc7+ {[%emt 0:00:01]} 51. Qd6 {[%emt 0:00:04]} Qxd6+ {[%emt 0:00:13]} 52. Rxd6 {[%emt 0:00:02]} a3 {[%emt 0:00:02]} 53. Rd2 {[%emt 0:00:01]} Nb3 {[%emt 0:00:05]} 54. Ra2 {[%emt 0:00:01]} Nd4 {[%emt 0:00:00]} 55. Rxa3 {[%emt 0:00:01]} Nxb5 {[%emt 0:00:01]} 56. Rb3 {[%emt 0:00:00]} Nd4 {[%emt 0:00:01]} 57. Rxb6 {[%emt 0:00:01]} Kg7 {[%emt 0:00:00]} 58. Kg3 {[%emt 0:00:03]} h5 {[%emt 0:00:01]} 59. Kf4 {[%emt 0:00:01]} h4 {[%emt 0:00:02]} 60. Kg4 {[%emt 0:00:03]} Nf5 {[%emt 0:00:01]} 61. Rb3 {[%emt 0:00:02]} Kh6 {[%emt 0:00:01]} 62. f4 {[%emt 0:00:00]} Kg7 {[%emt 0:00:01]} 63. Rb5 {[%emt 0:00:02]} Ne3+ {[%emt 0:00:01]} 64. Kf3 {[%emt 0:00:05]} Nf5 {[%emt 0:00:01]} 65. Re5 {[%emt 0:00:01]} Kf6 66. Kg4 {[%emt 0:00:00]} 1-0

[Event "CCT Chessable Masters Play-In 2025"]
[Site "Online"]
[Date "2025.02.17"]
[Round "1.46"]
[White "Jumabayev, Rinat"]
[Black "Bluebaum, Matthias"]
[Result "0-1"]
[ECO "C07"]
[WhiteElo "2564"]
[BlackElo "2643"]
[PlyCount "96"]
[EventDate "2025.02.13"]
[EventType "swiss"]
[EventCountry "NET"]
[TimeControl "600"]
[BlackClock "0:02:07"]

1. e4 {[%emt 0:00:02]} e6 {[%emt 0:00:03]} 2. d4 {[%emt 0:00:03]} d5 {[%emt 0:00:01]} 3. Nd2 {[%emt 0:00:00]} c5 {[%emt 0:00:01]} 4. exd5 {[%emt 0:00:03]} Qxd5 {[%emt 0:00:00]} 5. Ngf3 {[%emt 0:00:01]} cxd4 {[%emt 0:00:00]} 6. Bc4 {[%emt 0:00:06]} Qd6 {[%emt 0:00:01]} 7. O-O {[%emt 0:00:12]} Nf6 {[%emt 0:00:00]} 8. Nb3 {[%emt 0:00:04]} Nc6 {[%emt 0:00:03]} 9. Nbxd4 {[%emt 0:00:01]} Nxd4 {[%emt 0:00:00]} 10. Qxd4 {[%emt 0:00:01]} Qxd4 {[%emt 0:00:01]} 11. Nxd4 {[%emt 0:00:00]} Bd7 {[%emt 0:00:00]} 12. Be2 {[%emt 0:00:02]} Rc8 {[%emt 0:00:05]} 13. Rd1 {[%emt 0:00:10]} Bc5 {[%emt 0:00:01]} 14. c3 {[%emt 0:00:15]} e5 {[%emt 0:00:17]} 15. Nb3 {[%emt 0:01:55]} Bb6 {[%emt 0:00:05]} 16. Bf3 {[%emt 0:01:06]} Bc6 {[%emt 0:00:24]} 17. Bxc6+ {[%emt 0:00:22]} Rxc6 {[%emt 0:00:00]} 18. Re1 {[%emt 0:00:01]} Nd7 {[%emt 0:00:28]} 19. a4 {[%emt 0:00:14]} a6 {[%emt 0:00:13]} 20. a5 {[%emt 0:00:02]} Ba7 {[%emt 0:00:03]} 21. Be3 {[%emt 0:00:07]} Bxe3 {[%emt 0:00:08]} 22. Rxe3 {[%emt 0:00:00]} f6 {[%emt 0:00:07]} 23. Rd1 {[%emt 0:00:22]} Rc7 {[%emt 0:00:39]} 24. Nd4 {[%emt 0:00:21]} Kf7 {[%emt 0:00:11]} 25. Nf5 {[%emt 0:00:06]} g6 {[%emt 0:00:01]} 26. Nd6+ {[%emt 0:00:21]} Ke7 {[%emt 0:00:01]} 27. f4 {[%emt 0:00:52]} Rd8 {[%emt 0:00:20]} 28. g3 {[%emt 0:00:19]} Rb8 {[%emt 0:00:27]} 29. b4 {[%emt 0:00:03]} Ke6 {[%emt 0:00:24]} 30. g4 {[%emt 0:00:36]} Ke7 {[%emt 0:00:20]} 31. g5 {[%emt 0:00:13]} fxg5 {[%emt 0:00:12]} 32. fxg5 {[%emt 0:00:02]} Rd8 {[%emt 0:00:20]} 33. Red3 {[%emt 0:00:02]} Rh8 {[%emt 0:00:09]} 34. c4 {[%emt 0:00:11]} h5 {[%emt 0:00:08]} 35. c5 {[%emt 0:00:03]} Rb8 {[%emt 0:00:17]} 36. Kg2 {[%emt 0:00:07]} Rf8 {[%emt 0:00:24]} 37. h3 {[%emt 0:00:08]} h4 {[%emt 0:00:08]} 38. Rd5 {[%emt 0:00:28]} Ke6 {[%emt 0:00:31]} 39. Ne4 {[%emt 0:00:08]} Kf5 {[%emt 0:01:08]} 40. Nc3 {[%emt 0:00:36]} Rd8 {[%emt 0:00:02]} 41. Rd6 {[%emt 0:00:04]} Kxg5 {[%emt 0:00:03]} 42. Nd5 {[%emt 0:00:02]} Rc6 {[%emt 0:00:01]} 43. Rxc6 {[%emt 0:00:05]} bxc6 {[%emt 0:00:00]} 44. Nb6 {[%emt 0:00:00]} Re8 {[%emt 0:00:04]} 45. Rxd7 {[%emt 0:00:03]} e4 {[%emt 0:00:00]} 46. Rd2 {[%emt 0:00:00]} e3 {[%emt 0:00:01]} 47. Re2 {[%emt 0:00:01]} Kf4 {[%emt 0:00:00]} 48. Nc4 g5 {[%emt 0:00:01]} 0-1

[Event "CCT Chessable Masters Play-In 2025"]
[Site "Online"]
[Date "2025.02.17"]
[Round "1.47"]
[White "Puranik, Abhimanyu"]
[Black "Dai, Changren"]
[Result "1-0"]
[ECO "C88"]
[WhiteElo "2636"]
[BlackElo "2527"]
[PlyCount "177"]
[EventDate "2025.02.13"]
[EventType "swiss"]
[EventCountry "NET"]
[TimeControl "600"]
[WhiteClock "0:00:32"]

1. e4 {[%emt 0:00:02]} e5 {[%emt 0:00:02]} 2. Nf3 {[%emt 0:00:01]} Nc6 {[%emt 0:00:02]} 3. Bb5 {[%emt 0:00:02]} a6 {[%emt 0:00:01]} 4. Ba4 {[%emt 0:00:01]} Nf6 {[%emt 0:00:01]} 5. O-O {[%emt 0:00:02]} Be7 {[%emt 0:00:02]} 6. Re1 {[%emt 0:00:01]} b5 {[%emt 0:00:01]} 7. Bb3 {[%emt 0:00:01]} O-O {[%emt 0:00:00]} 8. d3 {[%emt 0:00:05]} d6 {[%emt 0:00:09]} 9. Bd2 {[%emt 0:00:05]} Bg4 {[%emt 0:00:10]} 10. c3 {[%emt 0:00:19]} Bh5 {[%emt 0:00:16]} 11. h3 {[%emt 0:00:05]} Re8 {[%emt 0:00:06]} 12. a4 {[%emt 0:00:13]} Na5 {[%emt 0:00:31]} 13. Bc2 {[%emt 0:00:11]} c5 {[%emt 0:00:02]} 14. Be3 {[%emt 0:00:09]} b4 {[%emt 0:00:04]} 15. Nbd2 {[%emt 0:00:04]} Rb8 {[%emt 0:00:02]} 16. Nf1 {[%emt 0:00:08]} b3 {[%emt 0:00:06]} 17. Bb1 {[%emt 0:00:01]} Qc7 {[%emt 0:00:10]} 18. Ng3 {[%emt 0:00:02]} Bg6 {[%emt 0:00:02]} 19. Nh4 {[%emt 0:00:04]} d5 {[%emt 0:00:27]} 20. Ngf5 {[%emt 0:00:34]} dxe4 {[%emt 0:00:17]} 21. dxe4 {[%emt 0:00:03]} c4 {[%emt 0:00:07]} 22. Qe2 {[%emt 0:00:29]} Bf8 {[%emt 0:00:07]} 23. Bg5 {[%emt 0:00:04]} Nd7 {[%emt 0:00:04]} 24. Ne3 {[%emt 0:00:05]} Qc6 {[%emt 0:00:20]} 25. Nxg6 {[%emt 0:00:13]} hxg6 {[%emt 0:00:02]} 26. Nd5 {[%emt 0:00:18]} Bc5 {[%emt 0:00:19]} 27. Kh1 {[%emt 0:00:20]} Nf8 {[%emt 0:00:07]} 28. Be3 {[%emt 0:00:29]} Ne6 {[%emt 0:00:07]} 29. h4 {[%emt 0:00:13]} Bxe3 {[%emt 0:00:11]} 30. Qxe3 {[%emt 0:00:04]} Rbd8 {[%emt 0:00:09]} 31. g3 {[%emt 0:00:15]} Nb7 {[%emt 0:00:18]} 32. a5 {[%emt 0:00:11]} Nd6 {[%emt 0:00:35]} 33. Qb6 {[%emt 0:00:09]} Qc8 {[%emt 0:00:24]} 34. Kh2 {[%emt 0:00:19]} Nc5 {[%emt 0:00:02]} 35. Qc7 {[%emt 0:00:16]} Qxc7 {[%emt 0:00:20]} 36. Nxc7 {[%emt 0:00:00]} Re7 {[%emt 0:00:03]} 37. Nd5 {[%emt 0:00:01]} Ree8 {[%emt 0:00:10]} 38. Nb6 {[%emt 0:00:02]} f6 {[%emt 0:00:34]} 39. Kg2 {[%emt 0:00:02]} Kf7 {[%emt 0:00:01]} 40. Kf3 {[%emt 0:00:14]} Ke6 {[%emt 0:00:04]} 41. Rd1 {[%emt 0:00:17]} f5 {[%emt 0:00:20]} 42. exf5+ {[%emt 0:00:07]} gxf5 {[%emt 0:00:00]} 43. Ke2 {[%emt 0:00:28]} e4 {[%emt 0:00:05]} 44. Rd4 {[%emt 0:00:12]} Nd3 {[%emt 0:00:20]} 45. Nxc4 {[%emt 0:00:06]} Nxc4 {[%emt 0:00:02]} 46. Rxc4 {[%emt 0:00:01]} Ne5 {[%emt 0:00:26]} 47. Rb4 {[%emt 0:00:02]} Nf3 {[%emt 0:00:01]} 48. g4 {[%emt 0:00:20]} Rd2+ {[%emt 0:00:12]} 49. Ke3 {[%emt 0:00:01]} Rxb2 {[%emt 0:00:03]} 50. gxf5+ {[%emt 0:00:03]} Kf6 {[%emt 0:00:02]} 51. Bxe4 {[%emt 0:00:27]} Nxh4 {[%emt 0:00:01]} 52. Rb6+ {[%emt 0:00:04]} Kf7 {[%emt 0:00:02]} 53. f3 {[%emt 0:00:02]} Nxf5+ {[%emt 0:00:01]} 54. Kf4 {[%emt 0:00:01]} Ne7 {[%emt 0:00:17]} 55. Rxa6 {[%emt 0:00:01]} Rc8 {[%emt 0:00:01]} 56. Rb6 {[%emt 0:00:03]} Ra2 {[%emt 0:00:05]} 57. Rb1 {[%emt 0:00:10]} Rxc3 {[%emt 0:00:02]} 58. a6 {[%emt 0:00:02]} Ra4 {[%emt 0:00:04]} 59. Ke5 {[%emt 0:00:12]} Ra5+ {[%emt 0:00:13]} 60. Kd4 {[%emt 0:00:02]} Rc7 {[%emt 0:00:17]} 61. R1xb3 {[%emt 0:00:01]} Rc1 {[%emt 0:00:13]} 62. Bd3 {[%emt 0:00:03]} Nc6+ {[%emt 0:00:04]} 63. Ke3 {[%emt 0:00:03]} Ne5 {[%emt 0:00:01]} 64. Rb7+ {[%emt 0:00:03]} Kg8 {[%emt 0:00:07]} 65. Rb8+ {[%emt 0:00:01]} Kf7 {[%emt 0:00:01]} 66. R3b7+ {[%emt 0:00:01]} Kf6 {[%emt 0:00:01]} 67. Rf8+ {[%emt 0:00:01]} Ke6 {[%emt 0:00:01]} 68. Re8+ {[%emt 0:00:01]} Kf6 {[%emt 0:00:02]} 69. Rb6+ {[%emt 0:00:00]} Kf7 {[%emt 0:00:01]} 70. Bb5 {[%emt 0:00:13]} Rxb5 {[%emt 0:00:04]} 71. Rxb5 {[%emt 0:00:04]} Nc4+ {[%emt 0:00:01]} 72. Kd4 {[%emt 0:00:02]} Kxe8 {[%emt 0:00:00]} 73. a7 {[%emt 0:00:01]} Ra1 {[%emt 0:00:02]} 74. Rb8+ {[%emt 0:00:01]} Kf7 {[%emt 0:00:01]} 75. a8=Q {[%emt 0:00:00]} Rxa8 {[%emt 0:00:01]} 76. Rxa8 {[%emt 0:00:01]} Nd6 {[%emt 0:00:01]} 77. Ke5 {[%emt 0:00:01]} Nc4+ {[%emt 0:00:00]} 78. Kf4 {[%emt 0:00:01]} Nd6 {[%emt 0:00:01]} 79. Ra6 {[%emt 0:00:01]} Ne8 {[%emt 0:00:00]} 80. Kf5 {[%emt 0:00:02]} Nf6 {[%emt 0:00:01]} 81. Ra7+ {[%emt 0:00:01]} Kf8 {[%emt 0:00:00]} 82. Kg6 {[%emt 0:00:01]} Ne8 {[%emt 0:00:01]} 83. Rf7+ {[%emt 0:00:02]} Kg8 {[%emt 0:00:00]} 84. f4 {[%emt 0:00:01]} Nd6 {[%emt 0:00:03]} 85. Rxg7+ {[%emt 0:00:01]} Kf8 {[%emt 0:00:00]} 86. Rd7 {[%emt 0:00:01]} Ne8 {[%emt 0:00:01]} 87. f5 {[%emt 0:00:01]} Kg8 {[%emt 0:00:02]} 88. Rd8 {[%emt 0:00:00]} Kf8 89. f6 {[%emt 0:00:01]} 1-0